bitfinex-derivatives/quotes_BTCF0:USTF0_20241009
["timestamp","ask_amount","ask_price","bid_price","bid_amount"]
[1728469289201,0.081521,62142.0,62141.0,0.01596]
[1728469289831,0.080521,62142.0,62141.0,0.01596]
[1728469290015,0.081521,62142.0,62141.0,0.01596]
[1728469290415,0.081521,62142.0,62141.0,0.096482]
[1728469291911,0.082521,62142.0,62141.0,0.096482]
[1728469292211,0.082521,62142.0,62141.0,0.216482]
[1728469294312,0.082521,62142.0,62141.0,0.26442894]
[1728469294816,0.082521,62142.0,62141.0,0.26434894]
[1728469295402,0.082521,62142.0,62141.0,0.216402]
[1728469295906,0.04223076,62142.0,62141.0,0.216402]
[1728469297519,0.04223076,62142.0,62141.0,0.28048716]
[1728469297710,0.04223076,62142.0,62141.0,0.16048716]
[1728469299318,0.04223076,62142.0,62141.0,0.096402]
[1728469303512,0.15223076,62142.0,62141.0,0.01588]
[1728469303719,0.15223076,62142.0,62134.0,0.0037]
[1728469303720,0.08053,62135.0,62134.0,0.0037]
[1728469304014,0.08053,62135.0,62134.0,0.1227396]
[1728469304015,0.12,62135.0,62134.0,0.1227396]
[1728469304211,0.080536,62130.0,62129.0,0.17713738]
[1728469304412,0.080536,62130.0,62129.0,0.20328127]
[1728469304617,0.080536,62130.0,62129.0,0.68616127]
[1728469305217,0.080536,62130.0,62129.0,0.80616127]
[1728469305521,0.080536,62130.0,62129.0,0.9555634]
[1728469305522,0.081536,62130.0,62129.0,0.9555634]
[1728469306118,0.082536,62130.0,62129.0,0.9555634]
[1728469306327,0.082536,62130.0,62129.0,1.5555634]
[1728469306629,0.00194211,62130.0,62129.0,0.9555634]
[1728469306829,0.00194211,62130.0,62129.0,1.5555634]
[1728469307025,0.08247811,62130.0,62129.0,1.5555634]
[1728469307220,0.08247811,62130.0,62129.0,0.9555634]
[1728469307723,0.08247811,62130.0,62129.0,0.76107659]
[1728469308027,0.03412148,62130.0,62129.0,0.76107659]
[1728469308427,0.03412148,62130.0,62129.0,0.64874186]
[1728469308728,0.03512148,62130.0,62129.0,0.64874186]
[1728469308919,0.03612148,62130.0,62129.0,0.64874186]
[1728469309725,0.002,62130.0,62129.0,0.4726834]
[1728469310525,0.082536,62130.0,62129.0,0.4726834]
[1728469311121,0.002,62130.0,62129.0,0.4726834]
[1728469311730,0.082536,62130.0,62129.0,0.4726834]
[1728469311921,0.002,62130.0,62129.0,0.4726834]
[1728469312122,0.082536,62130.0,62129.0,0.4726834]
[1728469312427,0.002,62130.0,62129.0,0.4726834]
[1728469312927,0.082536,62130.0,62129.0,0.4726834]
[1728469313434,0.002,62130.0,62129.0,0.4726834]
[1728469313631,0.002,62130.0,62129.0,0.3526858]
[1728469313827,0.082536,62130.0,62129.0,0.4726858]
[1728469314133,0.002,62130.0,62129.0,0.4726858]
[1728469315734,0.002,62130.0,62129.0,0.47268571]
[1728469316055,0.441329,62136.0,62129.0,0.39214871]
[1728469316328,0.080535,62133.0,62132.0,0.080533]
[1728469316524,0.080535,62133.0,62132.0,0.35268171]
[1728469316731,0.441329,62136.0,62135.0,0.08053]
[1728469317034,0.615102,62157.0,62140.0,0.080523]
[1728469317035,0.0037,62141.0,62140.0,0.080523]
[1728469317338,0.08293548,62143.0,62142.0,0.080521]
[1728469317524,0.08293548,62143.0,62142.0,0.88951903]
[1728469317725,0.56373548,62143.0,62142.0,0.44819803]
[1728469318024,0.56373548,62143.0,62142.0,0.27214871]
[1728469319422,0.4808,62143.0,62142.0,0.27214871]
[1728469319730,0.561321,62143.0,62142.0,0.35266971]
[1728469319924,0.0037,62146.0,62145.0,0.080517]
[1728469320120,0.080515,62147.0,62146.0,0.080516]
[1728469320323,0.3608,62148.0,62147.0,0.080514]
[1728469320543,0.3708,62148.0,62147.0,0.35266271]
[1728469321329,0.4908,62148.0,62147.0,0.35266271]
[1728469321731,0.571313,62148.0,62147.0,0.35266271]
[1728469322326,0.572313,62148.0,62147.0,0.35266271]
[1728469322524,0.573313,62148.0,62147.0,0.35266271]
[1728469323239,0.573313,62148.0,62147.0,0.20325998]
[1728469323735,0.4928,62148.0,62147.0,0.20325998]
[1728469323934,0.4928,62148.0,62147.0,0.20323228]
[1728469324136,0.4828,62148.0,62147.0,0.20323228]
[1728469324926,0.3628,62148.0,62147.0,0.4726013]
[1728469325863,0.002,62148.0,62147.0,0.8334013]
[1728469326423,0.001,62148.0,62147.0,1.12288183]
[1728469326625,0.0037,62152.0,62151.0,0.080509]
[1728469326823,0.0037,62157.0,62156.0,0.0805]
[1728469326824,0.080502,62157.0,62156.0,0.0805]
[1728469327039,0.080502,62157.0,62156.0,0.29962113]
[1728469327230,0.3608,62159.0,62158.0,0.0805]
[1728469327427,0.451299,62159.0,62158.0,0.28353077]
[1728469327738,0.090499,62159.0,62158.0,0.20321828]
[1728469327933,0.080499,62159.0,62158.0,0.20321828]
[1728469328238,0.080499,62159.0,62158.0,0.28351274]
[1728469328437,0.089499,62159.0,62158.0,0.0805]
[1728469328634,0.098499,62159.0,62158.0,0.0805]
[1728469329231,0.0805,62158.0,62157.0,0.08029446]
[1728469329435,0.080503,62156.0,62155.0,0.08029446]
[1728469329631,0.12,62156.0,62154.0,0.08029446]
[1728469329826,0.080504,62155.0,62154.0,0.08029446]
[1728469330033,0.080504,62155.0,62154.0,0.20299814]
[1728469330235,0.080504,62155.0,62154.0,0.08029446]
[1728469330436,0.12,62156.0,62153.0,0.52160046]
[1728469330737,0.080505,62154.0,62153.0,0.52160046]
[1728469330935,0.080505,62154.0,62153.0,0.64430426]
[1728469331234,0.080505,62154.0,62153.0,0.52160046]
[1728469331433,0.080505,62154.0,62153.0,0.441306]
[1728469331938,0.084505,62154.0,62153.0,0.441306]
[1728469333038,0.084505,62154.0,62153.0,0.080506]
[1728469333430,0.084505,62154.0,62153.0,0.14468945]
[1728469333833,0.088505,62154.0,62153.0,0.14468945]
[1728469334331,0.080506,62153.0,62152.0,0.06418345]
[1728469335241,0.441306,62153.0,62152.0,0.06418345]
[1728469335627,0.003,62153.0,62150.0,0.06418345]
[1728469335831,0.080509,62151.0,62147.0,0.080514]
[1728469336031,0.080513,62148.0,62147.0,0.080514]
[1728469336535,0.080513,62148.0,62147.0,0.16080846]
[1728469336737,0.080513,62148.0,62147.0,0.080514]
[1728469336935,0.080513,62148.0,62147.0,0.28351771]
[1728469337440,0.080513,62148.0,62147.0,0.28451771]
[1728469338360,0.080513,62148.0,62147.0,0.081514]
[1728469338647,0.080513,62148.0,62147.0,0.16180846]
[1728469339142,0.080513,62148.0,62147.0,0.28451663]
[1728469340734,0.080513,62148.0,62147.0,0.16180846]
[1728469340936,0.04022707,62148.0,62147.0,0.16180846]
[1728469341548,0.04022707,62148.0,62147.0,0.2845194]
[1728469342649,0.04022707,62148.0,62147.0,0.20422494]
[1728469343239,0.04022707,62148.0,62147.0,0.20422416]
[1728469345642,0.04022707,62148.0,62147.0,0.12371016]
[1728469346649,0.04022707,62148.0,62147.0,0.22011301]
[1728469347044,0.04522707,62148.0,62147.0,0.29962701]
[1728469347445,0.05022707,62148.0,62147.0,0.29962701]
[1728469348239,0.05022707,62148.0,62147.0,0.29962911]
[1728469348435,0.05022707,62148.0,62147.0,0.20322626]
[1728469349241,0.12,62153.0,62147.0,0.35258792]
[1728469349242,0.080506,62153.0,62147.0,0.35258792]
[1728469349440,0.080506,62153.0,62146.0,0.12]
[1728469349441,0.08051,62150.0,62149.0,0.08051]
[1728469349653,0.08051,62150.0,62149.0,0.20322226]
[1728469350853,0.08751,62150.0,62149.0,0.32322226]
[1728469351649,0.08751,62150.0,62149.0,0.47258009]
[1728469352953,0.08751,62150.0,62149.0,0.47358009]
[1728469353160,0.09351,62150.0,62149.0,0.47358009]
[1728469354248,0.09351,62150.0,62149.0,0.86241241]
[1728469354854,0.013,62150.0,62149.0,0.86241241]
[1728469355461,0.013,62150.0,62149.0,0.83438009]
[1728469356948,0.013,62150.0,62149.0,0.71438009]
[1728469357150,0.09351,62150.0,62149.0,0.71438009]
[1728469357853,0.09351,62150.0,62149.0,0.56502226]
[1728469358055,0.09351,62150.0,62149.0,0.20422025]
[1728469358362,0.09351,62150.0,62149.0,0.3535795]
[1728469358546,0.09351,62150.0,62149.0,0.20422025]
[1728469360457,0.09351,62150.0,62149.0,0.35358051]
[1728469360877,0.09351,62150.0,62149.0,0.27307051]
[1728469361361,0.09351,62150.0,62149.0,0.12371025]
[1728469362863,0.09351,62150.0,62149.0,0.12371292]
[1728469366155,0.19351,62150.0,62149.0,0.12371292]
[1728469367953,0.19351,62150.0,62149.0,0.1237129]
[1728469368666,0.31351,62150.0,62149.0,0.1237129]
[1728469372290,0.79623,62150.0,62149.0,0.001]
[1728469373369,1.15703,62150.0,62149.0,0.001]
[1728469374374,1.03703,62150.0,62149.0,0.001]
[1728469374560,1.15703,62150.0,62149.0,0.001]
[1728469374869,0.67431,62150.0,62149.0,0.001]
[1728469379572,0.67431,62150.0,62149.0,0.06536192]
[1728469386879,0.67431,62150.0,62149.0,0.001]
[1728469387076,6.58431,62150.0,62148.0,6.6e-07]
[1728469387277,0.080519,62143.0,62142.0,0.08053648]
[1728469387477,0.551319,62143.0,62142.0,0.2032677]
[1728469387777,0.551319,62143.0,62142.0,0.08053648]
[1728469388484,0.551319,62143.0,62142.0,0.08153648]
[1728469388980,0.551319,62143.0,62142.0,0.08253648]
[1728469389881,0.555319,62143.0,62142.0,0.001]
[1728469390080,0.080521,62142.0,62141.0,0.08053648]
[1728469390377,0.200521,62142.0,62141.0,0.12273213]
[1728469390575,0.16022851,62142.0,62141.0,0.12273213]
[1728469391085,0.16022851,62142.0,62141.0,0.12272966]
[1728469391276,0.16322851,62142.0,62141.0,0.12272966]
[1728469392071,0.16722851,62142.0,62141.0,0.12272966]
[1728469393787,0.26722851,62142.0,62135.0,0.00084]
[1728469393991,0.63130831,62136.0,62130.0,0.10033322]
[1728469394194,0.080534,62132.0,62131.0,0.12274868]
[1728469394398,0.080534,62132.0,62128.0,0.01584]
[1728469394399,0.080538,62129.0,62128.0,0.01584]
[1728469394597,0.080541,62126.0,62125.0,0.00241455]
[1728469394802,0.200541,62126.0,62125.0,0.12517369]
[1728469394992,0.200541,62126.0,62125.0,0.12517903]
[1728469395193,0.200541,62126.0,62125.0,0.12517767]
[1728469395494,0.200541,62126.0,62125.0,0.00241455]
[1728469395886,0.201541,62126.0,62125.0,0.00841455]
[1728469397194,0.201541,62126.0,62125.0,0.006]
[1728469397394,0.202541,62126.0,62125.0,0.006]
[1728469398641,0.302541,62126.0,62125.0,0.006]
[1728469398796,0.302541,62126.0,62125.0,0.05420048]
[1728469399098,0.302541,62126.0,62125.0,0.006]
[1728469399891,0.301541,62126.0,62125.0,0.005]
[1728469401810,0.181541,62126.0,62125.0,0.005]
[1728469402026,0.301541,62126.0,62125.0,0.005]
[1728469403903,0.181541,62126.0,62125.0,0.005]
[1728469404204,0.081541,62126.0,62125.0,0.205543]
[1728469404612,0.201541,62126.0,62125.0,0.085543]
[1728469406312,0.201541,62126.0,62125.0,0.005]
[1728469407908,0.201541,62126.0,62125.0,0.085543]
[1728469408509,0.201541,62126.0,62125.0,0.005]
[1728469408936,0.081541,62126.0,62125.0,0.005]
[1728469409103,0.201541,62126.0,62125.0,0.005]
[1728469410606,0.201541,62126.0,62125.0,0.085543]
[1728469412905,0.562341,62126.0,62125.0,0.085543]
[1728469414920,0.562341,62126.0,62125.0,0.05320048]
[1728469415606,0.562341,62126.0,62125.0,0.005]
[1728469418012,6.472341,62126.0,62125.0,0.005]
[1728469418321,6.582341,62126.0,62125.0,0.005]
[1728469419632,6.582341,62126.0,62125.0,0.05320048]
[1728469420719,6.582341,62126.0,62125.0,0.005]
[1728469433138,6.221541,62126.0,62125.0,0.005]
[1728469433434,6.582341,62126.0,62125.0,0.005]
[1728469436731,6.221541,62126.0,62125.0,0.005]
[1728469436940,6.582341,62126.0,62125.0,0.005]
[1728469437734,6.462341,62126.0,62125.0,0.005]
[1728469437929,6.582341,62126.0,62125.0,0.005]
[1728469442038,6.582341,62126.0,62125.0,0.08548994]
[1728469442836,6.582341,62126.0,62125.0,0.005]
[1728469443042,6.582341,62126.0,62125.0,0.16603294]
[1728469443243,6.582341,62126.0,62125.0,0.28880147]
[1728469443443,6.582341,62126.0,62125.0,0.20831153]
[1728469443644,6.582341,62126.0,62125.0,0.28888925]
[1728469443845,6.582341,62126.0,62125.0,0.20831153]
[1728469444239,6.472341,62126.0,62125.0,0.20831153]
[1728469445246,6.472341,62126.0,62125.0,0.28889302]
[1728469445541,6.472341,62126.0,62125.0,0.20831153]
[1728469446243,6.111541,62126.0,62125.0,0.20831153]
[1728469446541,6.472341,62126.0,62125.0,0.20831153]
[1728469448245,6.472341,62126.0,62125.0,0.20830959]
[1728469457955,6.111541,62126.0,62125.0,0.20830959]
[1728469458152,6.472341,62126.0,62125.0,0.20831052]
[1728469458353,6.2718,62126.0,62125.0,0.20831052]
[1728469458553,5.911,62126.0,62125.0,0.3283087]
[1728469459056,5.87069871,62126.0,62125.0,0.3283087]
[1728469459455,5.87069871,62126.0,62125.0,0.83851662]
[1728469460458,5.87069871,62126.0,62125.0,1.92139662]
[1728469460859,5.81428214,62126.0,62125.0,1.92139662]
[1728469462164,3.53853514,62126.0,62125.0,1.92138084]
[1728469462365,3.53853514,62126.0,62125.0,2.29151806]
[1728469462366,2.61527032,62126.0,62125.0,2.29151806]
[1728469462660,2.38670432,62126.0,62125.0,2.49617711]
[1728469462963,2.05181632,62126.0,62125.0,3.672496]
[1728469463157,0.71838732,62126.0,62125.0,2.43065251]
[1728469463364,0.41274532,62126.0,62125.0,2.43065251]
[1728469463560,0.31294532,62126.0,62125.0,2.43065251]
[1728469463761,0.31204532,62126.0,62125.0,2.43065251]
[1728469464062,3.2e-07,62126.0,62125.0,2.43064823]
[1728469464255,3.2e-07,62133.0,62132.0,0.080534]
[1728469464455,3.2e-07,62133.0,62132.0,1.56548765]
[1728469464763,3.2e-07,62133.0,62132.0,2.04832765]
[1728469465562,0.00100032,62133.0,62132.0,2.05332765]
[1728469465765,0.00100032,62133.0,62132.0,1.69252765]
[1728469465961,0.00100032,62133.0,62132.0,2.41412765]
[1728469466154,3.2e-07,62133.0,62132.0,2.41412765]
[1728469466665,3.2e-07,62133.0,62132.0,2.42412765]
[1728469466966,3.2e-07,62133.0,62132.0,2.30412765]
[1728469470255,3.2e-07,62133.0,62132.0,2.33257239]
[1728469470451,0.008,62147.0,62146.0,0.200516]
[1728469470655,0.080501,62158.0,62155.0,0.080504]
[1728469471056,0.48529371,62156.0,62155.0,0.080504]
[1728469472059,0.56579671,62156.0,62155.0,0.080504]
[1728469472465,0.56679671,62156.0,62155.0,0.087504]
[1728469473265,0.56779671,62156.0,62155.0,0.094504]
[1728469474674,0.56763671,62156.0,62155.0,0.094504]
[1728469475578,0.65648354,62156.0,62155.0,0.094504]
[1728469476274,0.8001466,62156.0,62155.0,0.094504]
[1728469477368,0.65648354,62156.0,62155.0,0.094504]
[1728469478561,0.80015446,62156.0,62155.0,0.094504]
[1728469478762,0.83105446,62156.0,62155.0,0.094504]
[1728469480474,0.68738354,62156.0,62155.0,0.094504]
[1728469481972,0.68512983,62156.0,62155.0,0.094504]
[1728469482279,0.84567695,62156.0,62155.0,0.094504]
[1728469483570,0.75683012,62156.0,62155.0,0.094504]
[1728469483769,0.596283,62156.0,62155.0,0.094504]
[1728469485714,0.51578,62156.0,62155.0,0.214504]
[1728469485868,0.002,62156.0,62155.0,0.214504]
[1728469491578,0.002,62156.0,62155.0,0.936104]
[1728469492484,0.002,62156.0,62155.0,0.96415811]
[1728469493378,0.565383,62156.0,62155.0,0.816104]
[1728469493770,0.598583,62156.0,62155.0,0.816104]
[1728469495005,0.598583,62156.0,62155.0,0.094504]
[1728469497282,0.598583,62156.0,62155.0,0.014]
[1728469497476,0.598583,62156.0,62154.0,0.441305]
[1728469497477,0.080504,62155.0,62154.0,0.441305]
[1728469497677,0.563384,62155.0,62154.0,0.441305]
[1728469498682,0.7099743,62155.0,62154.0,0.441305]
[1728469498882,0.7099743,62155.0,62148.0,0.12]
[1728469498883,0.57172512,62155.0,62148.0,0.12]
[1728469499090,0.57172512,62155.0,62150.0,0.080509]
[1728469499091,0.080512,62151.0,62150.0,0.080509]
[1728469499281,0.16935712,62151.0,62150.0,0.080509]
[1728469499482,0.65223712,62151.0,62150.0,0.080509]
[1728469499688,0.70998563,62151.0,62150.0,0.080509]
[1728469500485,0.63014051,62151.0,62150.0,0.080509]
[1728469500690,0.72699134,62151.0,62150.0,0.080509]
[1728469502684,0.63814051,62151.0,62150.0,0.080509]
[1728469502990,0.55762851,62151.0,62150.0,0.200509]
[1728469503188,0.07474851,62151.0,62150.0,0.200509]
[1728469503494,0.55762851,62151.0,62150.0,0.080509]
[1728469503792,0.080517,62146.0,62145.0,0.080516]
[1728469503987,0.563399,62143.0,62142.0,0.44373426]
[1728469504294,0.683399,62143.0,62142.0,0.36321326]
[1728469504588,0.683399,62143.0,62142.0,0.00225326]
[1728469506697,0.686399,62143.0,62142.0,0.00225326]
[1728469507485,0.65010945,62143.0,62142.0,0.00225326]
[1728469508297,0.64610945,62143.0,62142.0,0.00225326]
[1728469508495,0.64710945,62143.0,62142.0,0.00225326]
[1728469508695,0.64910945,62143.0,62142.0,0.00225326]
[1728469509196,0.52910945,62143.0,62142.0,0.12225326]
[1728469510586,0.52510945,62143.0,62142.0,0.12225326]
[1728469510887,0.52410945,62143.0,62142.0,0.12225326]
[1728469511087,0.52610945,62143.0,62142.0,0.12225326]
[1728469511889,0.52810945,62143.0,62142.0,0.12225326]
[1728469512289,0.52710945,62143.0,62142.0,0.12225326]
[1728469512490,0.53010945,62143.0,62142.0,0.12225326]
[1728469512895,0.56954517,62143.0,62142.0,0.12225326]
[1728469513400,0.57154517,62143.0,62142.0,0.00225326]
[1728469513891,0.14793372,62151.0,62142.0,0.96305326]
[1728469514091,0.0117,62161.0,62142.0,0.96305326]
[1728469514092,0.0117,62161.0,62150.0,0.4808]
[1728469514286,0.080479,62168.0,62167.0,0.080479]
[1728469514589,0.0549,62169.0,62168.0,0.080479]
[1728469515521,0.135378,62169.0,62168.0,0.080479]
[1728469516382,0.140378,62169.0,62168.0,0.080479]
[1728469516788,0.140378,62169.0,62168.0,0.081479]
[1728469518090,0.140378,62169.0,62168.0,0.080479]
[1728469518399,0.0629,62169.0,62168.0,0.080479]
[1728469519498,0.06282,62169.0,62168.0,0.080479]
[1728469521287,0.06272,62169.0,62168.0,0.080479]
[1728469526306,0.06272,62169.0,62167.0,0.36172]
[1728469526500,0.080479,62168.0,62167.0,0.44128]
[1728469528396,0.080479,62168.0,62167.0,0.3608]
[1728469528698,0.083479,62168.0,62167.0,0.3608]
[1728469529108,0.086479,62168.0,62167.0,0.3608]
[1728469530306,0.086479,62168.0,62167.0,0.44128]
[1728469530695,0.086479,62168.0,62167.0,0.3608]
[1728469534607,0.083479,62168.0,62167.0,0.3608]
[1728469534919,0.083479,62168.0,62167.0,0.3688]
[1728469534920,0.084479,62168.0,62167.0,0.3688]
[1728469535119,0.113379,62168.0,62167.0,0.3688]
[1728469535303,0.223379,62168.0,62167.0,0.3658]
[1728469535799,0.31220283,62168.0,62167.0,0.3648]
[1728469536002,0.48948849,62168.0,62167.0,0.3728]
[1728469536396,0.54721983,62168.0,62167.0,0.3728]
[1728469536709,0.54621983,62168.0,62167.0,0.3688]
[1728469536901,0.54621983,62168.0,62167.0,0.3698]
[1728469537211,0.36993417,62168.0,62167.0,0.3698]
[1728469537411,0.36893417,62168.0,62167.0,0.3628]
[1728469537610,0.40143417,62168.0,62167.0,0.002]
[1728469538009,0.40243417,62168.0,62167.0,0.3618]
[1728469538503,0.40243417,62168.0,62167.0,0.3608]
[1728469538705,0.40343417,62168.0,62167.0,0.3608]
[1728469539306,0.40543417,62168.0,62167.0,0.3608]
[1728469540511,0.40343417,62168.0,62167.0,0.3628]
[1728469541102,0.40643417,62168.0,62167.0,0.3608]
[1728469541917,0.40743417,62168.0,62167.0,0.3608]
[1728469542910,0.260879,62168.0,62167.0,0.3608]
[1728469544208,0.150879,62168.0,62167.0,0.63128]
[1728469544516,0.118979,62168.0,62167.0,0.63128]
[1728469545914,0.115979,62168.0,62167.0,0.63128]
[1728469546107,0.117979,62168.0,62167.0,0.63128]
[1728469546712,0.216979,62168.0,62167.0,0.44128]
[1728469551014,0.36353636,62168.0,62167.0,0.44128]
[1728469553217,0.36353636,62168.0,62167.0,0.3608]
[1728469554220,0.36353636,62168.0,62167.0,0.18377647]
[1728469554918,0.080482,62166.0,62165.0,0.080483]
[1728469555112,0.22703936,62166.0,62165.0,0.080483]
[1728469557326,0.14655736,62166.0,62165.0,0.080483]
[1728469557522,0.14655736,62166.0,62165.0,0.144183]
[1728469558023,0.05472,62169.0,62168.0,0.080479]
[1728469558211,0.05472,62169.0,62168.0,0.200479]
[1728469558418,0.05472,62169.0,62168.0,0.270479]
[1728469559023,0.05472,62169.0,62168.0,0.31862857]
[1728469559214,0.05472,62169.0,62168.0,0.270479]
[1728469560218,0.06072,62169.0,62168.0,0.270479]
[1728469564033,0.06072,62169.0,62168.0,0.33467852]
[1728469564217,0.06072,62169.0,62168.0,0.270479]
[1728469565927,0.2072531,62169.0,62168.0,0.270479]
[1728469568026,0.2072531,62169.0,62168.0,1.353039]
[1728469570824,0.20725245,62169.0,62168.0,1.353039]
[1728469572632,0.20725245,62169.0,62168.0,0.753039]
[1728469572919,0.06072,62169.0,62168.0,1.0249626]
[1728469573125,0.04825535,62176.0,62175.0,0.08047]
[1728469573320,0.04825535,62176.0,62175.0,0.71159128]
[1728469573527,0.04825535,62176.0,62175.0,0.83423575]
[1728469573935,0.04825535,62176.0,62175.0,0.63127]
[1728469574337,0.04825535,62176.0,62175.0,0.63227]
[1728469574338,0.05925535,62176.0,62175.0,0.63227]
[1728469575528,0.06925535,62176.0,62175.0,0.63327]
[1728469575836,0.021,62176.0,62175.0,0.63327]
[1728469576234,0.101469,62176.0,62175.0,0.66147887]
[1728469578529,0.101469,62176.0,62175.0,0.59147887]
[1728469579640,0.101429,62176.0,62175.0,0.59147887]
[1728469580833,0.101429,62176.0,62175.0,0.67180015]
[1728469581033,0.101429,62176.0,62175.0,0.59147887]
[1728469583338,0.101429,62176.0,62175.0,0.39100887]
[1728469583957,0.101429,62176.0,62175.0,0.3628]
[1728469586139,0.101429,62176.0,62175.0,0.41101876]
[1728469586437,0.101429,62176.0,62175.0,0.3628]
[1728469586845,0.101429,62176.0,62175.0,0.41103058]
[1728469587380,0.221429,62176.0,62175.0,0.05023058]
[1728469587539,0.221429,62176.0,62170.0,0.0642563]
[1728469587540,0.080477,62171.0,62170.0,0.0642563]
[1728469587735,0.12,62173.0,62169.0,0.0642563]
[1728469587937,0.113079,62170.0,62169.0,0.0642563]
[1728469588235,0.08048,62169.0,62164.0,0.080485]
[1728469588438,0.080485,62166.0,62165.0,0.080485]
[1728469588633,0.11990031,62166.0,62165.0,0.080485]
[1728469588834,0.22703712,62166.0,62165.0,0.080485]
[1728469589030,0.40362132,62166.0,62165.0,0.080485]
[1728469589234,0.34588893,62166.0,62165.0,0.080485]
[1728469589446,0.16930473,62166.0,62165.0,0.080485]
[1728469589643,0.17030473,62166.0,62165.0,0.080485]
[1728469590742,0.08981973,62166.0,62165.0,0.080485]
[1728469590957,0.16147152,62166.0,62165.0,0.080485]
[1728469591143,0.08981973,62166.0,62165.0,0.080485]
[1728469592541,0.08981973,62166.0,62165.0,0.270485]
[1728469594551,0.08981973,62166.0,62165.0,0.270445]
[1728469595146,0.08981973,62166.0,62165.0,0.631245]
[1728469595955,0.08981973,62166.0,62165.0,0.85029355]
[1728469595956,0.001,62166.0,62165.0,0.85029355]
[1728469596446,0.08149,62166.0,62165.0,0.85029355]
[1728469596852,0.08149,62166.0,62165.0,0.75390801]
[1728469597037,0.08149,62166.0,62165.0,0.85032251]
[1728469597455,0.08149,62166.0,62165.0,0.66032251]
[1728469599151,0.08149,62166.0,62165.0,0.56390801]
[1728469599765,0.08149,62166.0,62165.0,0.48346301]
[1728469603151,0.22585123,62166.0,62165.0,0.3608]
[1728469603352,0.31467577,62166.0,62165.0,0.3608]
[1728469603961,0.17031454,62166.0,62165.0,0.3608]
[1728469605962,0.17031454,62166.0,62165.0,0.441291]
[1728469608168,0.08982454,62166.0,62165.0,0.631291]
[1728469609852,0.25022591,62166.0,62165.0,0.631291]
[1728469610755,0.08982454,62166.0,62165.0,0.631291]
[1728469611166,0.001,62166.0,62165.0,0.75395507]
[1728469611353,0.001,62166.0,62165.0,0.39315507]
[1728469611583,0.001,62166.0,62165.0,0.75395507]
[1728469612560,0.001,62166.0,62165.0,0.83325817]
[1728469612767,0.001,62166.0,62165.0,0.68395507]
[1728469613160,0.081489,62166.0,62165.0,0.68395507]
[1728469613462,0.081489,62166.0,62165.0,0.83325818]
[1728469613963,0.081489,62166.0,62165.0,0.68395507]
[1728469615067,0.081489,62166.0,62165.0,0.68395514]
[1728469615563,0.081489,62166.0,62165.0,0.47245825]
[1728469615758,0.081489,62166.0,62165.0,0.83325825]
[1728469617658,0.081489,62166.0,62165.0,0.47245825]
[1728469617853,0.081489,62166.0,62165.0,0.83325825]
[1728469618059,0.04121844,62166.0,62165.0,0.561291]
[1728469618263,0.04121844,62166.0,62165.0,0.200491]
[1728469618696,0.04121844,62166.0,62165.0,0.561291]
[1728469619361,0.04121844,62166.0,62165.0,0.64180527]
[1728469619564,0.04121844,62166.0,62165.0,0.28100527]
[1728469619876,0.04121844,62166.0,62165.0,0.64180527]
[1728469620265,0.04121844,62166.0,62165.0,0.76446941]
[1728469620570,0.080484,62170.0,62169.0,0.080485]
[1728469620759,0.180484,62170.0,62169.0,0.26490186]
[1728469621780,0.189484,62170.0,62169.0,0.26490186]
[1728469626278,0.33603983,62170.0,62169.0,0.200485]
[1728469627873,0.33603983,62170.0,62169.0,0.22936217]
[1728469630077,0.27830823,62170.0,62169.0,0.22936217]
[1728469633173,0.08049,62165.0,62163.0,0.0644221]
[1728469633371,0.080494,62162.0,62161.0,0.0644221]
[1728469633679,0.1,62162.0,62156.0,0.0842221]
[1728469633867,0.12,62160.0,62156.0,0.0805221]
[1728469634175,0.080501,62157.0,62156.0,0.0805221]
[1728469634567,0.200501,62157.0,62156.0,0.0161]
[1728469635472,0.562301,62157.0,62156.0,0.0221]
[1728469635674,0.563301,62157.0,62156.0,0.0311]
[1728469639470,0.563301,62157.0,62156.0,0.03106]
[1728469639675,0.683301,62157.0,62156.0,0.03106]
[1728469639880,0.683301,62157.0,62156.0,0.015]
[1728469640080,0.563301,62157.0,62156.0,0.015]
[1728469641079,0.60272964,62157.0,62156.0,0.015]
[1728469643389,0.70272964,62157.0,62156.0,0.015]
[1728469647076,0.58272964,62157.0,62156.0,0.015]
[1728469647386,0.70272964,62157.0,62156.0,0.015]
[1728469648280,0.663301,62157.0,62156.0,0.015]
[1728469657510,0.302501,62157.0,62156.0,0.015]
[1728469657814,0.663301,62157.0,62156.0,0.015]
[1728469658113,0.70272991,62157.0,62156.0,0.015]
[1728469663310,0.663301,62157.0,62156.0,0.015]
[1728469663915,0.69243249,62157.0,62156.0,0.015]
[1728469664916,0.080507,62152.0,62151.0,0.03183523]
[1728469665510,0.080508,62151.0,62150.0,0.10843964]
[1728469667018,0.081508,62151.0,62150.0,0.11443964]
[1728469667921,0.082508,62151.0,62150.0,0.11743964]
[1728469669520,0.082508,62151.0,62150.0,0.11739964]
[1728469678827,0.17135961,62151.0,62150.0,0.11739964]
[1728469679937,0.3319295,62151.0,62150.0,0.11739964]
[1728469681136,0.33192948,62151.0,62150.0,0.11739964]
[1728469683733,0.29250003,62151.0,62150.0,0.11739964]
[1728469683933,0.24307789,62151.0,62150.0,0.11739964]
[1728469687332,0.24307789,62151.0,62145.0,0.076]
[1728469687333,0.080525,62138.0,62132.0,0.3608]
[1728469687530,0.200525,62138.0,62132.0,0.3608]
[1728469688427,0.201525,62138.0,62137.0,0.00541342]
[1728469689337,0.202525,62138.0,62137.0,0.00541342]
[1728469689833,0.201525,62138.0,62137.0,0.00241342]
[1728469690139,0.08054,62126.0,62125.0,0.096642]
[1728469690436,0.08054,62126.0,62125.0,0.0161]
[1728469691035,0.12,62129.0,62125.0,0.1388481]
[1728469691339,0.080539,62127.0,62126.0,0.21915161]
[1728469692225,0.080539,62127.0,62126.0,0.1227481]
[1728469692627,0.081539,62127.0,62126.0,0.1227481]
[1728469693431,0.081539,62127.0,62126.0,0.2427481]
[1728469693836,0.081539,62127.0,62126.0,0.12]